fUST/lending_fUST_20240119
["ID","MTS","AMOUNT","RATE_DAILY","PERIOD"]
[312071669,1705596653106,-500.0,0.00041369,30]
[312071670,1705596653116,-508.63313221,0.00041369,30]
[312071671,1705596653126,-500.0,0.00041369,30]
[312071672,1705596653135,-1107.79,0.00041369,30]
[312071673,1705596653145,-500.0,0.00041369,30]
[312071674,1705596653157,-500.0,0.00041369,30]
[312071675,1705596653167,-500.0,0.00041369,30]
[312071676,1705596653177,-500.0,0.00041369,30]
[312071677,1705596653186,-500.0,0.00041369,30]
[312071678,1705596653196,-500.0,0.00041369,30]
[312071679,1705596653206,-500.0,0.00041369,30]
[312071680,1705596653215,-192.7739854,0.00041369,30]
[312071681,1705596653225,-500.58898887,0.00041369,30]
[312071682,1705596653235,-500.0,0.00041369,30]
[312071683,1705596653245,-502.49825283,0.00041369,30]
[312071684,1705596653254,-502.8011451,0.00041369,30]
[312071685,1705596653264,-603.53,0.00041369,30]
[312071686,1705596653273,-569.78275668,0.00041369,30]
[312071687,1705596653283,-513.67836503,0.00041369,30]
[312071688,1705596653292,-500.0,0.00041369,30]
[312071689,1705596653302,-500.0,0.00041369,30]
[312071690,1705596653312,-223.54362701,0.00041369,30]
[312071691,1705596653322,-501.68443412,0.00041369,30]
[312071692,1705596653331,-521.51352694,0.00041369,30]
[312071693,1705596653341,-500.0,0.00041369,30]
[312071694,1705596653350,-2561.23,0.00041369,30]
[312071695,1705596653359,-2222.66,0.00041369,30]
[312071696,1705596653369,-500.0,0.00041369,7]
[312071697,1705596653378,-500.0,0.00041369,30]
[312071698,1705596653387,-512.16962409,0.00041369,30]
[312071699,1705596653397,-500.0,0.00041369,30]
[312071700,1705596653409,-550.0,0.00041369,30]
[312071701,1705596653419,-503.86156984,0.00041369,30]
[312071702,1705596653428,-500.0,0.00041369,30]
[312071703,1705596653437,-1199.28,0.00041369,30]
[312071704,1705596653447,-502.46348243,0.00041369,30]
[312071705,1705596653456,-509.39814518,0.00041369,30]
[312071706,1705596653465,-500.0,0.00041369,30]
[312071707,1705596653474,-500.0,0.00041369,30]
[312071708,1705596653484,-500.0,0.00041369,30]
[312071709,1705596653494,-1915.51,0.00041369,30]
[312071710,1705596653503,-500.91720663,0.00041369,30]
[312071711,1705596653518,-500.0,0.00041369,30]
[312071712,1705596653527,-502.2126617,0.00041369,30]
[312071713,1705596653537,-643.57480652,0.00041369,30]
[312071714,1705596653546,-502.05601995,0.00041369,30]
[312071715,1705596653559,-509.42332748,0.00041369,30]
[312071716,1705596653569,-604.12574127,0.00041369,30]
[312071717,1705596653578,-500.0,0.00041369,30]
[312071718,1705596653587,-507.34713246,0.00041369,30]
[312071719,1705596653599,-500.0,0.00041369,30]
[312071720,1705596653608,-500.0,0.00041369,30]
[312071721,1705596653619,-4046.67,0.00041369,30]
[312071722,1705596653628,-883.17,0.00041369,30]
[312071723,1705596653638,-500.0,0.00041369,30]
[312071724,1705596653649,-500.0,0.00041369,30]
[312071725,1705596653662,-22661.52,0.00041369,14]
[312071726,1705596653672,-309.90649208,0.00041369,30]
[312071727,1705596653681,-1132.55,0.00041369,30]
[312071728,1705596653691,-500.0,0.00041369,30]
[312071729,1705596653700,-500.0,0.00041369,30]
[312071730,1705596653710,-500.0,0.00041369,30]
[312071731,1705596653720,-500.0,0.00041369,30]
[312071732,1705596653730,-500.0,0.00041369,30]
[312071733,1705596653740,-500.39094438,0.00041369,30]
[312071734,1705596653751,-500.0,0.00041369,30]
[312071735,1705596653761,-500.0,0.00041369,30]
[312071736,1705596653772,-500.0,0.00041369,30]
[312071737,1705596653782,-4679.2,0.00041369,30]
[312071738,1705596653792,-500.0,0.00041369,30]
[312071739,1705596653801,-500.0,0.00041369,30]
[312071740,1705596653811,-500.0,0.00041369,30]
[312071741,1705596653821,-500.0,0.00041369,30]
[312071742,1705596653830,-2910.71,0.00041369,30]
[312071743,1705596653839,-507.86439986,0.00041369,30]
[312071744,1705596653849,-500.0,0.00041369,30]
[312071745,1705596653859,-643.30859665,0.00041369,30]
[312071746,1705596653868,-503.30353569,0.00041369,30]
[312071747,1705596653878,-500.0,0.00041369,30]
[312071748,1705596653887,-6806.65,0.00041369,30]
[312071749,1705596653897,-613.20896247,0.00041369,30]
[312071750,1705596653910,-503.4175724,0.00041369,30]
[312071751,1705596653919,-501.30454167,0.00041369,30]
[312071752,1705596653929,-500.0,0.00041369,30]
[312071753,1705596653938,-500.0,0.00041369,30]
[312071754,1705596653948,-500.0,0.00041369,30]
[312071755,1705596653958,-169.43731133,0.00041369,30]
[312071756,1705596653967,-500.0,0.00041369,30]
[312071757,1705596653976,-501.73831106,0.00041369,30]
[312071758,1705596653986,-500.0,0.00041369,30]
[312071759,1705596653995,-500.0,0.00041369,30]
[312071760,1705596654005,-951.91,0.00041369,30]
[312071761,1705596654015,-230.7888052,0.00041369,30]
[312071762,1705596654024,-198.94788818,0.00041369,30]
[312071763,1705596654033,-1089.79,0.00041369,30]
[312071764,1705596654043,-500.0,0.00041369,30]
[312071765,1705596654052,-1482.01,0.00041369,30]
[312071766,1705596654127,-500.0,0.00041369,30]
[312071767,1705596654137,-500.0,0.00041369,30]
[312071768,1705596654146,-536.90485475,0.00041369,30]
[312071769,1705596654159,-500.0,0.00041369,30]
[312071770,1705596654169,-500.0,0.00041369,30]
[312071771,1705596654178,-500.0,0.00041369,30]
[312071772,1705596654188,-500.0,0.00041369,30]
[312071773,1705596654199,-500.0,0.00041369,30]
[312071774,1705596654210,-500.0,0.00041369,30]
[312071775,1705596654220,-500.0,0.00041369,30]
[312071776,1705596654231,-501.31020996,0.00041369,30]
[312071777,1705596654241,-500.0,0.00041369,30]
[312071778,1705596654252,-500.0,0.00041369,30]
[312071779,1705596654262,-6786.78,0.00041369,30]
[312071780,1705596654272,-758.71,0.00041369,30]
[312071781,1705596654282,-500.0,0.00041369,30]
[312071782,1705596654292,-4984.03,0.00041369,30]
[312071783,1705596654302,-500.0,0.00041369,30]
[312071784,1705596654313,-500.0,0.00041369,30]
[312071785,1705596654322,-500.0,0.00041369,30]
[312071786,1705596654332,-500.0,0.00041369,30]
[312071787,1705596654342,-500.0,0.00041369,30]
[312071788,1705596654352,-5922.96,0.00041369,30]
[312071789,1705596654364,-500.0,0.00041369,30]
[312071790,1705596654374,-500.0,0.00041369,30]
[312071791,1705596654384,-500.0,0.00041369,30]
[312071792,1705596654396,-500.0,0.00041369,20]
[312071793,1705596654409,-14212.01,0.00041369,30]
[312071794,1705596654422,-500.0,0.00041369,30]
[312071795,1705596654433,-500.0,0.00041369,30]
[312071796,1705596654443,-1117.33,0.00041369,30]
[312071797,1705596654454,-787.22,0.00041369,30]
[312071798,1705596654465,-500.0,0.00041369,30]
[312071799,1705596654475,-500.0,0.00041369,30]
[312071800,1705596654484,-500.0,0.00041369,5]
[312071801,1705596654494,-1927.9,0.00041369,30]
[312071802,1705596654503,-500.0,0.00041369,30]
[312071803,1705596654516,-1236.92,0.00041369,30]
[312071804,1705596654527,-500.0,0.00041369,30]
[312071805,1705596654537,-500.0,0.00041369,30]
[312071806,1705596654547,-500.0,0.00041369,30]
[312071807,1705596654560,-501.46121602,0.00041369,30]
[312071808,1705596654569,-500.74341688,0.00041369,30]
[312071809,1705596654579,-501.26033619,0.00041369,30]
[312071810,1705596654589,-500.0,0.00041369,30]
[312071811,1705596654600,-500.0,0.00041369,30]
[312071812,1705596654610,-500.0,0.00041369,30]
[312071813,1705596654620,-263.15611797,0.00041369,30]
[312071814,1705596654630,-500.0,0.00041369,30]
[312071815,1705596654640,-500.0,0.00041369,30]
[312071816,1705596654650,-595.42,0.00041369,30]
[312071817,1705596654666,-500.0,0.00041369,30]
[312071818,1705596654677,-512.11337829,0.00041369,30]
[312071819,1705596654687,-500.0,0.00041369,30]
[312071820,1705596654699,-500.0,0.00041369,30]
[312071821,1705596654708,-500.0,0.00041369,30]
[312071822,1705596654718,-500.0,0.00041369,30]
[312071823,1705596654728,-507.23095227,0.00041369,30]
[312071824,1705596654738,-500.0,0.00041369,30]
[312071825,1705596654748,-558.04977188,0.00041369,30]
[312071826,1705596654757,-504.99042001,0.00041369,30]
[312071827,1705596654769,-500.0,0.00041369,30]
[312071828,1705596654779,-500.0,0.00041369,30]
[312071829,1705596654789,-500.0,0.00041369,30]
[312071830,1705596654798,-500.0,0.00041369,30]
[312071831,1705596654808,-500.0,0.00041369,30]
[312071832,1705596654817,-500.0,0.00041369,30]
[312071833,1705596654827,-500.0,0.00041369,30]
[312071834,1705596654837,-230.48355744,0.00041369,30]
[312071835,1705596654847,-500.0,0.00041369,30]
[312071836,1705596654857,-527.63841557,0.00041369,30]
[312071837,1705596654866,-500.0,0.00041369,30]
[312071838,1705596654876,-2032.26,0.00041369,30]
[312071839,1705596654886,-500.0,0.00041369,30]
[312071840,1705596654896,-500.0,0.00041369,30]
[312071841,1705596654908,-965.48,0.00041369,30]
[312071842,1705596654919,-500.0,0.00041369,30]
[312071843,1705596654929,-704.01,0.00041369,14]
[312071844,1705596654940,-504.8200028,0.00041369,30]
[312071845,1705596654951,-866.39,0.00041369,30]
[312071846,1705596654960,-500.0,0.00041369,30]
[312071847,1705596654970,-1608.51,0.00041369,30]
[312071848,1705596654980,-502.67519078,0.00041369,30]
[312071849,1705596654990,-500.0,0.00041369,30]
[312071850,1705596654999,-2533.93,0.00041369,30]
[312071851,1705596655008,-502.14821897,0.00041369,30]
[312071852,1705596655018,-500.0,0.00041369,30]
[312071853,1705596655028,-500.0,0.00041369,30]
[312071854,1705596655048,-443.9601873,0.00041369,30]
[312071855,1705596655057,-500.0,0.00041369,30]
[312071856,1705596655067,-3103.58,0.00041369,30]
[312071857,1705596655077,-577.25,0.00041369,30]
[312071858,1705596655087,-3194.51,0.00041369,30]
[312071859,1705596655097,-500.0,0.00041369,30]
[312071860,1705596655107,-500.0,0.00041369,30]
[312071861,1705596655123,-500.0,0.00041369,30]
[312071862,1705596655133,-500.0,0.00041369,30]
[312071863,1705596655143,-500.0,0.00041369,30]
[312071864,1705596655153,-501.73625022,0.00041369,30]
[312071865,1705596655166,-501.78249333,0.00041369,30]
[312071866,1705596655177,-500.0,0.00041369,30]
[312071867,1705596655187,-500.53370218,0.00041369,30]
[312071868,1705596655197,-527.4649401,0.00041369,30]
[312071869,1705596655208,-514.11614301,0.00041369,30]
[312071870,1705596655219,-592.82,0.00041369,30]
[312071871,1705596655229,-500.0,0.00041369,30]
[312071872,1705596655240,-500.0,0.00041369,30]
[312071873,1705596655251,-500.0,0.00041369,30]
[312071874,1705596655262,-500.0,0.00041369,30]
[312071875,1705596655272,-500.0,0.00041369,30]
[312071876,1705596655284,-500.0,0.00041369,30]
[312071877,1705596655296,-500.0,0.00041369,2]
[312071878,1705596655306,-151.0,0.00041369,7]
[312071879,1705596655317,-151.0,0.00041369,7]
[312071880,1705596655328,-151.0,0.00041369,7]
[312071881,1705596655339,-151.0,0.00041369,7]
[312071882,1705596655349,-248.589081,0.00041369,7]
[312071883,1705596655360,-151.0,0.00041369,7]
[312071884,1705596655370,-151.0,0.00041369,7]
[312071885,1705596655381,-151.0,0.00041369,7]
[312071886,1705596655391,-3672.248617,0.00041369,7]
[312071887,1705596655402,-3672.248617,0.00041369,7]
[312071888,1705596655416,-151.0,0.00041369,7]
[312071889,1705596655427,-1000.0,0.00041391,7]
[312071890,1705596655436,-151.0,0.00041391,21]
[312071891,1705596655447,-151.0,0.00041415,21]
[312071892,1705596655457,-418.571,0.00041436,30]
[312071893,1705596655467,-151.0,0.00041438,21]
[312071894,1705596655477,-151.0,0.00041461,21]
[312071895,1705596655488,-151.0,0.00041485,21]
[312071896,1705596655498,-777.0,0.000415,4]
[312071897,1705596655508,-151.0,0.00041508,21]
[312071898,1705596655522,-151.0,0.00041531,21]
[312071899,1705596655537,-1284.880037,0.00041553,120]
[312071900,1705596655547,-151.0,0.00041555,21]
[312071901,1705596655561,-151.0,0.00041578,21]
[312071902,1705596655571,-151.0,0.00041601,21]
[312071903,1705596655581,-151.0,0.00041625,21]
[312071904,1705596655592,-500.88827318,0.00041643,30]
[312071905,1705596655604,-560.02101323,0.00041643,30]
[312071906,1705596655615,-500.0,0.00041643,30]
[312071907,1705596655626,-500.0,0.00041643,7]
[312071908,1705596655638,-500.0,0.00041643,30]
[312071909,1705596655715,-500.0,0.00041643,30]
[312071910,1705596655726,-418.60525651,0.00041643,30]
[312071911,1705596655737,-500.0,0.00041643,30]
[312071912,1705596655749,-500.0,0.00041643,30]
[312071913,1705596655759,-201.65120246,0.00041643,30]
[312071914,1705596655771,-500.0,0.00041643,30]
[312071915,1705596655782,-500.0,0.00041643,30]
[312071916,1705596655801,-500.0,0.00041643,30]
[312071917,1705596655812,-500.0,0.00041643,30]
[312071918,1705596655823,-500.0,0.00041643,30]
[312071919,1705596655833,-500.0,0.00041643,30]
[312071920,1705596655844,-500.0,0.00041643,30]
[312071921,1705596655855,-500.0,0.00041643,30]
[312071922,1705596655866,-500.0,0.00041643,30]
[312071923,1705596655877,-500.0,0.00041643,30]
[312071924,1705596655888,-500.0,0.00041643,30]
[312071925,1705596655900,-150.0,0.00041643,30]
[312071926,1705596655916,-500.0,0.00041643,30]
[312071927,1705596655926,-500.0,0.00041643,30]
[312071928,1705596655940,-500.0,0.00041643,30]
[312071929,1705596655959,-201.71656657,0.00041643,30]
[312071930,1705596655970,-500.0,0.00041643,30]
[312071931,1705596655980,-517.45,0.00041643,30]
[312071932,1705596655991,-500.0,0.00041643,30]
[312071933,1705596656002,-501.60575561,0.00041643,30]
[312071934,1705596656012,-500.0,0.00041643,30]
[312071935,1705596656024,-500.0,0.00041643,30]
[312071936,1705596656034,-502.45872022,0.00041643,30]
[312071937,1705596656044,-500.0,0.00041643,30]
[312071938,1705596656054,-328.97517033,0.00041643,30]
[312071939,1705596656064,-1728.07,0.00041643,30]
[312071940,1705596656074,-500.0,0.00041643,7]
[312071941,1705596656084,-500.0,0.00041643,30]
[312071942,1705596656095,-500.0,0.00041643,30]
[312071943,1705596656105,-500.0,0.00041643,30]
[312071944,1705596656115,-500.0,0.00041643,30]
[312071945,1705596656125,-500.0,0.00041643,30]
[312071946,1705596656135,-500.0,0.00041643,30]
[312071947,1705596656145,-500.0,0.00041643,30]
[312071948,1705596656157,-500.0,0.00041643,30]
[312071949,1705596656168,-500.0,0.00041643,30]
[312071950,1705596656178,-519.56,0.00041643,30]
[312071951,1705596656188,-556.83143549,0.00041643,2]
[312071952,1705596656199,-211.58229564,0.00041643,30]
[312071953,1705596656210,-643.15,0.00041643,30]
[312071954,1705596656219,-500.0,0.00041643,30]
[312071955,1705596656229,-535.95456018,0.00041643,30]
[312071956,1705596656239,-846.06,0.00041643,30]
[312071957,1705596656249,-500.0,0.00041643,30]
[312071958,1705596656258,-500.0,0.00041643,30]
[312071959,1705596656267,-500.0,0.00041643,30]
[312071960,1705596656277,-500.0,0.00041643,30]
[312071961,1705596656286,-503.67043007,0.00041643,30]
[312071962,1705596656295,-500.0,0.00041643,30]
[312071963,1705596656305,-500.0,0.00041643,30]
[312071964,1705596656315,-500.0,0.00041643,30]
[312071965,1705596656325,-500.0,0.00041643,2]
[312071966,1705596656336,-500.0,0.00041643,30]
[312071967,1705596656346,-500.0,0.00041643,30]
[312071968,1705596656356,-691.8975842,0.00041643,2]
[312071969,1705596656365,-500.0,0.00041643,30]
[312071970,1705596656374,-500.0,0.00041643,30]
[312071971,1705596656384,-500.0,0.00041643,30]
[312071972,1705596656393,-220.21876738,0.00041643,30]
[312071973,1705596656403,-576.08,0.00041643,30]
[312071974,1705596656417,-500.0,0.00041643,30]
[312071975,1705596656427,-500.0,0.00041643,30]
[312071976,1705596656437,-500.0,0.00041643,30]
[312071977,1705596656447,-328.21999416,0.00041643,30]
[312071978,1705596656457,-539.16,0.00041643,30]
[312071979,1705596656467,-500.0,0.00041643,30]
[312071980,1705596656477,-500.0,0.00041643,30]
[312071981,1705596656487,-500.49883489,0.00041643,30]
[312071982,1705596656497,-500.0,0.00041643,7]
[312071983,1705596656508,-500.0,0.00041643,30]
[312071984,1705596656523,-536.1,0.00041643,30]
[312071985,1705596656533,-500.0,0.00041643,30]
[312071986,1705596656543,-500.0,0.00041643,30]
[312071987,1705596656552,-500.0,0.00041643,30]
[312071988,1705596656563,-500.0,0.00041643,30]
[312071989,1705596656573,-500.0,0.00041643,30]
[312071990,1705596656584,-500.0,0.00041643,30]
[312071991,1705596656594,-500.0,0.00041643,30]
[312071992,1705596656605,-500.0,0.00041643,30]
[312071993,1705596656614,-1482.41,0.00041643,30]
[312071994,1705596656624,-512.34129118,0.00041643,30]
[312071995,1705596656634,-500.0,0.00041643,30]
[312071996,1705596656644,-500.0,0.00041643,30]
[312071997,1705596656653,-500.0,0.00041643,30]
[312071998,1705596656669,-512.38150394,0.00041643,30]
[312071999,1705596656678,-509.91489581,0.00041643,30]
[312072000,1705596656687,-500.0,0.00041643,30]
[312072001,1705596656697,-500.0,0.00041643,30]
[312072002,1705596656707,-215.19498296,0.00041643,5]
[312072003,1705596656716,-579.55,0.00041643,30]
[312072004,1705596656725,-340.85441833,0.00041643,30]
[312072005,1705596656734,-500.0,0.00041643,30]
[312072006,1705596656743,-500.0,0.00041643,30]
[312072007,1705596656753,-500.0,0.00041643,30]
[312072008,1705596656762,-500.0,0.00041643,30]
[312072009,1705596656772,-1107.79,0.00041643,30]
[312072010,1705596656781,-500.0,0.00041643,30]
[312072011,1705596656792,-500.0,0.00041643,30]
[312072012,1705596656802,-500.0,0.00041643,30]
[312072013,1705596656812,-500.0,0.00041643,30]
[312072014,1705596656821,-184.28810456,0.00041643,30]
[312072015,1705596656831,-500.0,0.00041643,30]
[312072016,1705596656841,-502.3853646,0.00041643,30]
[312072017,1705596656851,-500.0,0.00041643,30]
[312072018,1705596656862,-603.53,0.00041643,30]
[312072019,1705596656874,-500.0,0.00041643,30]
[312072020,1705596656883,-500.0,0.00041643,30]
[312072021,1705596656893,-500.0,0.00041643,30]
[312072022,1705596656904,-2561.23,0.00041643,30]
[312072023,1705596656917,-2222.66,0.00041643,30]
[312072024,1705596656928,-500.0,0.00041643,7]
[312072025,1705596656937,-500.0,0.00041643,30]
[312072026,1705596656947,-500.0,0.00041643,30]
[312072027,1705596656957,-500.0,0.00041643,30]
[312072028,1705596656967,-1199.28,0.00041643,30]
[312072029,1705596656977,-500.74779451,0.00041643,30]
[312072030,1705596656986,-605.57316236,0.00041643,30]
[312072031,1705596656995,-500.0,0.00041643,30]
[312072032,1705596657005,-1915.51,0.00041643,30]
[312072033,1705596657014,-503.61570195,0.00041643,30]
[312072034,1705596657023,-500.0,0.00041643,30]
[312072035,1705596657033,-626.98522015,0.00041643,30]
[312072036,1705596657043,-500.0,0.00041643,30]
[312072037,1705596657054,-4046.67,0.00041643,30]
[312072038,1705596657064,-883.17,0.00041643,30]
[312072039,1705596657074,-495.22708729,0.00041643,30]
[312072040,1705596657145,-500.0,0.00041643,30]
[312072041,1705596657158,-22661.52,0.00041643,14]
[312072042,1705596657168,-1132.55,0.00041643,30]
[312072043,1705596657178,-500.0,0.00041643,30]
[312072044,1705596657187,-500.0,0.00041643,30]
[312072045,1705596657197,-509.99493526,0.00041643,30]
[312072046,1705596657206,-500.0,0.00041643,30]
[312072047,1705596657217,-500.0,0.00041643,30]
[312072048,1705596657227,-500.0,0.00041643,30]
[312072049,1705596657239,-384.78079638,0.00041643,30]
[312072050,1705596657249,-500.0,0.00041643,30]
[312072051,1705596657259,-4679.2,0.00041643,30]
[312072052,1705596657269,-500.0,0.00041643,30]
[312072053,1705596657278,-502.96290202,0.00041643,30]
[312072054,1705596657288,-500.0,0.00041643,30]
[312072055,1705596657298,-529.44108688,0.00041643,30]
[312072056,1705596657307,-2910.71,0.00041643,30]
[312072057,1705596657316,-500.0,0.00041643,30]
[312072058,1705596657326,-502.46808783,0.00041643,30]
[312072059,1705596657335,-6806.65,0.00041643,30]
[312072060,1705596657345,-509.54731772,0.00041643,30]
[312072061,1705596657354,-500.0,0.00041643,30]
[312072062,1705596657363,-500.0,0.00041643,30]
[312072063,1705596657373,-500.0,0.00041643,30]
[312072064,1705596657383,-500.0,0.00041643,30]
[312072065,1705596657392,-506.54726453,0.00041643,30]
[312072066,1705596657402,-951.91,0.00041643,30]
[312072067,1705596657418,-1089.79,0.00041643,30]
[312072068,1705596657428,-500.0,0.00041643,30]
[312072069,1705596657437,-1482.01,0.00041643,30]
[312072070,1705596657448,-502.47968267,0.00041643,30]
[312072071,1705596657457,-506.31012108,0.00041643,30]
[312072072,1705596657467,-500.0,0.00041643,30]
[312072073,1705596657476,-500.0,0.00041643,30]
[312072074,1705596657486,-500.0,0.00041643,30]
[312072075,1705596657496,-500.0,0.00041643,30]
[312072076,1705596657506,-500.0,0.00041643,30]
[312072077,1705596657524,-509.24443762,0.00041643,30]
[312072078,1705596657537,-500.0,0.00041643,30]
[312072079,1705596657548,-627.8606387,0.00041643,30]
[312072080,1705596657558,-500.0,0.00041643,30]
[312072081,1705596657570,-6786.78,0.00041643,30]
[312072082,1705596657582,-758.71,0.00041643,30]
[312072083,1705596657592,-500.0,0.00041643,30]
[312072084,1705596657601,-4984.03,0.00041643,30]
[312072085,1705596657611,-500.0,0.00041643,30]
[312072086,1705596657621,-502.45845128,0.00041643,30]
[312072087,1705596657631,-500.0,0.00041643,30]
[312072088,1705596657642,-500.0,0.00041643,30]
[312072089,1705596657652,-353.52786703,0.00041643,30]
[312072090,1705596657671,-5922.96,0.00041643,30]
[312072091,1705596657682,-500.0,0.00041643,30]
[312072092,1705596657692,-500.0,0.00041643,30]
[312072093,1705596657702,-500.0,0.00041643,30]
[312072094,1705596657712,-500.0,0.00041643,20]
[312072095,1705596657722,-14212.01,0.00041643,30]
[312072096,1705596657732,-500.0,0.00041643,30]
[312072097,1705596657743,-500.0,0.00041643,30]
[312072098,1705596657753,-1117.33,0.00041643,30]
[312072100,1705596657764,-787.22,0.00041643,30]
[312072101,1705596657775,-507.70691761,0.00041643,30]
[312072102,1705596657785,-500.0,0.00041643,30]
[312072103,1705596657796,-501.90661756,0.00041643,5]
[312072104,1705596657806,-1927.9,0.00041643,30]
[312072106,1705596657817,-500.0,0.00041643,30]
[312072108,1705596657828,-1236.92,0.00041643,30]
[312072109,1705596657839,-500.0,0.00041643,30]
[312072110,1705596657850,-500.0,0.00041643,30]
[312072111,1705596657861,-500.0,0.00041643,30]
[312072112,1705596657870,-500.0,0.00041643,30]
[312072113,1705596657880,-512.2992539,0.00041643,30]
[312072114,1705596657890,-500.0,0.00041643,30]
[312072115,1705596657900,-500.0,0.00041643,30]
[312072116,1705596657919,-595.42,0.00041643,30]
[312072117,1705596657929,-500.0,0.00041643,30]
[312072118,1705596657940,-500.0,0.00041643,30]
[312072119,1705596657950,-500.0,0.00041643,30]
[312072120,1705596657961,-500.0,0.00041643,30]
[312072121,1705596657971,-500.0,0.00041643,30]
[312072122,1705596657981,-500.0,0.00041643,30]
[312072123,1705596657992,-500.0,0.00041643,30]
[312072124,1705596658002,-500.0,0.00041643,30]
[312072125,1705596658013,-502.77780565,0.00041643,30]
[312072126,1705596658023,-500.0,0.00041643,30]
[312072127,1705596658034,-500.0,0.00041643,30]
[312072128,1705596658044,-351.86916281,0.00041643,30]
[312072129,1705596658054,-500.0,0.00041643,30]
[312072130,1705596658065,-500.0,0.00041643,30]
[312072131,1705596658074,-500.0,0.00041643,30]
[312072132,1705596658084,-500.0,0.00041643,30]
[312072133,1705596658093,-2032.26,0.00041643,30]
[312072134,1705596658104,-500.0,0.00041643,30]
[312072135,1705596658113,-500.0,0.00041643,30]
[312072136,1705596658124,-965.48,0.00041643,30]
[312072137,1705596658135,-282.28640194,0.00041643,30]
[312072138,1705596658144,-704.01,0.00041643,14]
[312072139,1705596658154,-866.39,0.00041643,30]
[312072140,1705596658173,-500.0,0.00041643,30]
[312072141,1705596658183,-1608.51,0.00041643,30]
[312072142,1705596658193,-500.0,0.00041643,30]
[312072143,1705596658203,-2533.93,0.00041643,30]
[312072144,1705596658213,-500.0,0.00041643,30]
[312072145,1705596658223,-626.54223835,0.00041643,30]
[312072146,1705596658233,-500.0,0.00041643,30]
[312072147,1705596658243,-3103.58,0.00041643,30]
[312072148,1705596658254,-577.25,0.00041643,30]
[312072149,1705596658264,-3194.51,0.00041643,30]
[312072150,1705596658274,-541.15127612,0.00041643,30]
[312072151,1705596658284,-500.0,0.00041643,30]
[312072152,1705596658293,-500.0,0.00041643,30]
[312072153,1705596658303,-512.56470949,0.00041643,30]
[312072154,1705596658313,-500.0,0.00041643,30]
[312072155,1705596658324,-500.0,0.00041643,30]
[312072156,1705596658334,-592.82,0.00041643,30]
[312072157,1705596658351,-500.0,0.00041643,30]
[312072158,1705596658365,-500.0,0.00041643,30]
[312072159,1705596658376,-500.0,0.00041643,30]
[312072160,1705596658386,-503.62839991,0.00041643,30]
[312072161,1705596658396,-500.0,0.00041643,30]
[312072162,1705596658405,-500.0,0.00041643,30]
[312072163,1705596658420,-500.0,0.00041643,2]
[312072164,1705596658492,-278.349771,0.00041643,7]
[312072165,1705596658504,-151.0,0.00041643,7]
[312072166,1705596658518,-151.0,0.00041643,7]
[312072167,1705596658529,-153.756851,0.00041643,7]
[312072168,1705596658540,-151.0,0.00041643,7]
[312072169,1705596658550,-151.0,0.00041643,7]
[312072170,1705596658565,-3672.248617,0.00041643,7]
[312072171,1705596658575,-3672.248617,0.00041643,7]